[Event "Late-Titled-Tuesday-Blitz-May-28-2024"]
[Site "Chess.com"]
[Date "2024.05.28"]
[Round "8"]
[White "ChessLebaneseSalah"]
[Black "bancsoo"]
[Result "1-0"]
[WhiteElo "2572"]
[BlackElo "2877"]
[TimeControl "180+1"]
[EndTime "15:25:24 PDT"]
[Termination "ChessLebaneseSalah won by resignation"]

1. e4 {[%clk 0:03:00.9]} 1... c5 {[%clk 0:02:59.6]} 2. Nf3 {[%clk 0:03:01]} 2...
Nc6 {[%clk 0:03:00]} 3. d4 {[%clk 0:03:01.4]} 3... cxd4 {[%clk 0:03:00.3]} 4.
Nxd4 {[%clk 0:03:02.3]} 4... Nf6 {[%clk 0:03:00.9]} 5. Nc3 {[%clk 0:03:01.4]}
5... e5 {[%clk 0:03:01.5]} 6. Ndb5 {[%clk 0:03:01.4]} 6... d6 {[%clk 0:03:02.1]}
7. Nd5 {[%clk 0:03:01.7]} 7... Nxd5 {[%clk 0:03:02]} 8. exd5 {[%clk 0:03:02.6]}
8... Nb8 {[%clk 0:03:02.6]} 9. a4 {[%clk 0:03:02.6]} 9... Be7 {[%clk 0:03:02.3]}
10. Be2 {[%clk 0:03:01.8]} 10... O-O {[%clk 0:03:01.2]} 11. Bd2 {[%clk
0:03:02.3]} 11... Bf5 {[%clk 0:02:49.6]} 12. a5 {[%clk 0:02:52.9]} 12... a6
{[%clk 0:02:49]} 13. Na3 {[%clk 0:02:51.8]} 13... Nd7 {[%clk 0:02:49.5]} 14. O-O
{[%clk 0:02:48.5]} 14... Rc8 {[%clk 0:02:47.6]} 15. Nc4 {[%clk 0:02:37.1]} 15...
Be4 {[%clk 0:02:30.2]} 16. Be1 {[%clk 0:02:10.5]} 16... Nf6 {[%clk 0:02:25.3]}
17. Ne3 {[%clk 0:02:09.6]} 17... Bg6 {[%clk 0:02:14.3]} 18. c4 {[%clk
0:02:05.1]} 18... Ne4 {[%clk 0:02:09.2]} 19. f3 {[%clk 0:01:55.8]} 19... Bg5
{[%clk 0:02:05.1]} 20. Nc2 {[%clk 0:01:30.4]} 20... Nc5 {[%clk 0:02:01.1]} 21.
b4 {[%clk 0:01:30.7]} 21... Nb3 {[%clk 0:01:58.6]} 22. Ra3 {[%clk 0:01:28.6]}
22... Bxc2 {[%clk 0:01:57.4]} 23. Qxc2 {[%clk 0:01:26.3]} 23... Nd4 {[%clk
0:01:57.6]} 24. Qa2 {[%clk 0:01:17.4]} 24... Be3+ {[%clk 0:01:39]} 25. Rxe3
{[%clk 0:01:11.6]} 1-0

[Event "Late-Titled-Tuesday-Blitz-May-28-2024"]
[Site "Chess.com"]
[Date "2024.05.28"]
[Round "8"]
[White "vi_pranav"]
[Black "K_A_S_T_O_R"]
[Result "1-0"]
[WhiteElo "3040"]
[BlackElo "2852"]
[TimeControl "180+1"]
[EndTime "15:25:31 PDT"]
[Termination "vi_pranav won by resignation"]

1. e4 {[%clk 0:03:00.9]} 1... c5 {[%clk 0:02:59.7]} 2. Nf3 {[%clk 0:03:00.6]}
2... d6 {[%clk 0:03:00.1]} 3. d4 {[%clk 0:03:00.5]} 3... cxd4 {[%clk 0:03:00.4]}
4. Nxd4 {[%clk 0:03:01.2]} 4... Nf6 {[%clk 0:03:00.8]} 5. Nc3 {[%clk 0:03:01.7]}
5... a6 {[%clk 0:03:01.3]} 6. Bg5 {[%clk 0:03:00.9]} 6... e6 {[%clk 0:03:01.4]}
7. Qe2 {[%clk 0:03:00.8]} 7... h6 {[%clk 0:02:57.9]} 8. Be3 {[%clk 0:02:59.7]}
8... b5 {[%clk 0:02:54.1]} 9. a3 {[%clk 0:02:55]} 9... Bb7 {[%clk 0:02:53.6]}
10. f3 {[%clk 0:02:52.9]} 10... Nbd7 {[%clk 0:02:53.8]} 11. g3 {[%clk
0:02:47.4]} 11... Rc8 {[%clk 0:02:52.9]} 12. Bh3 {[%clk 0:02:47.1]} 12... Ne5
{[%clk 0:02:43.1]} 13. Rd1 {[%clk 0:02:39]} 13... Nc4 {[%clk 0:02:41.4]} 14. Bc1
{[%clk 0:02:38.5]} 14... Qb6 {[%clk 0:02:41.3]} 15. O-O {[%clk 0:02:13.1]} 15...
e5 {[%clk 0:02:31.4]} 16. Bxc8 {[%clk 0:02:12.7]} 16... Bxc8 {[%clk 0:02:24.4]}
17. Nd5 {[%clk 0:02:11.8]} 17... Nxd5 {[%clk 0:02:15.3]} 18. exd5 {[%clk
0:02:12.7]} 18... Kd8 {[%clk 0:02:04.6]} 19. b3 {[%clk 0:01:59.5]} 19... Na5
{[%clk 0:01:57]} 20. Be3 {[%clk 0:01:58]} 20... exd4 {[%clk 0:01:48.1]} 21. Bxd4
{[%clk 0:01:58.9]} 21... Qc7 {[%clk 0:01:18.1]} 22. Qf2 {[%clk 0:01:53.1]} 22...
Kd7 {[%clk 0:01:15.3]} 23. Bb6 {[%clk 0:01:51.4]} 23... Qc3 {[%clk 0:01:14.9]}
24. Rd3 {[%clk 0:01:51.3]} 24... Qxd3 {[%clk 0:01:11.2]} 25. cxd3 {[%clk
0:01:50.1]} 25... Nxb3 {[%clk 0:01:11.7]} 26. Qc2 {[%clk 0:01:48.3]} 26... Nc5
{[%clk 0:01:10.8]} 27. d4 {[%clk 0:01:48.3]} 27... Bb7 {[%clk 0:01:11.3]} 28.
dxc5 {[%clk 0:01:45.4]} 1-0

[Event "Late-Titled-Tuesday-Blitz-May-28-2024"]
[Site "Chess.com"]
[Date "2024.05.28"]
[Round "8"]
[White "ploxoi"]
[Black "Mikhail_Golubev"]
[Result "0-1"]
[WhiteElo "2415"]
[BlackElo "2628"]
[TimeControl "180+1"]
[EndTime "15:25:33 PDT"]
[Termination "Mikhail_Golubev won by checkmate"]

1. d4 {[%clk 0:03:00.9]} 1... Nf6 {[%clk 0:02:58.9]} 2. c4 {[%clk 0:02:56.4]}
2... d6 {[%clk 0:02:59.3]} 3. g3 {[%clk 0:02:55.8]} 3... g6 {[%clk 0:02:59.5]}
4. Bg2 {[%clk 0:02:55.7]} 4... Bg7 {[%clk 0:03:00.1]} 5. Nf3 {[%clk 0:02:56.4]}
5... O-O {[%clk 0:02:59.9]} 6. O-O {[%clk 0:02:56.9]} 6... Nbd7 {[%clk
0:03:00.2]} 7. Nc3 {[%clk 0:02:57]} 7... e5 {[%clk 0:03:00.3]} 8. e4 {[%clk
0:02:53.7]} 8... Re8 {[%clk 0:02:59.8]} 9. Be3 {[%clk 0:02:52]} 9... exd4 {[%clk
0:02:52.2]} 10. Nxd4 {[%clk 0:02:52.9]} 10... Nc5 {[%clk 0:02:46.6]} 11. Qc2
{[%clk 0:02:53]} 11... Ng4 {[%clk 0:02:45.6]} 12. Rad1 {[%clk 0:02:35.1]} 12...
Nxe3 {[%clk 0:02:45.1]} 13. fxe3 {[%clk 0:02:36]} 13... Bg4 {[%clk 0:02:42]} 14.
Rde1 {[%clk 0:02:31.2]} 14... a5 {[%clk 0:02:29.1]} 15. Rf4 {[%clk 0:02:28.6]}
15... Bd7 {[%clk 0:02:25.6]} 16. Ref1 {[%clk 0:02:25.4]} 16... Rf8 {[%clk
0:02:25.6]} 17. Nd5 {[%clk 0:02:17.8]} 17... c6 {[%clk 0:01:34.4]} 18. Nf6+
{[%clk 0:02:15.1]} 18... Bxf6 {[%clk 0:01:34.7]} 19. Rxf6 {[%clk 0:02:16]} 19...
Qe7 {[%clk 0:01:35]} 20. a3 {[%clk 0:01:58.1]} 20... a4 {[%clk 0:01:28.6]} 21.
Qf2 {[%clk 0:01:50.4]} 21... Rae8 {[%clk 0:01:19.2]} 22. Qf4 {[%clk 0:01:44.7]}
22... Nxe4 {[%clk 0:01:16.8]} 23. Bxe4 {[%clk 0:01:42.7]} 23... Qxe4 {[%clk
0:01:17.3]} 24. Rxd6 {[%clk 0:01:38.8]} 24... Bh3 {[%clk 0:01:13]} 25. Re1
{[%clk 0:01:33.5]} 25... Qg2# {[%clk 0:01:09.6]} 0-1

[Event "Late-Titled-Tuesday-Blitz-May-28-2024"]
[Site "Chess.com"]
[Date "2024.05.28"]
[Round "8"]
[White "Pig-filth"]
[Black "shirovin"]
[Result "1-0"]
[WhiteElo "2374"]
[BlackElo "2121"]
[TimeControl "180+1"]
[EndTime "15:25:37 PDT"]
[Termination "Pig-filth won by resignation"]

1. d4 {[%clk 0:03:00.9]} 1... f5 {[%clk 0:02:59.1]} 2. Bg5 {[%clk 0:03:00.6]}
2... g6 {[%clk 0:02:58.1]} 3. Nc3 {[%clk 0:02:57.2]} 3... Bg7 {[%clk 0:02:35]}
4. e3 {[%clk 0:02:45.8]} 4... Nf6 {[%clk 0:02:33.5]} 5. h4 {[%clk 0:02:42.4]}
5... h6 {[%clk 0:02:32.8]} 6. Bxf6 {[%clk 0:02:39.4]} 6... Bxf6 {[%clk
0:02:32.3]} 7. Qf3 {[%clk 0:02:37.7]} 7... O-O {[%clk 0:02:10.1]} 8. h5 {[%clk
0:02:34.2]} 8... g5 {[%clk 0:02:03.4]} 9. Qxf5 {[%clk 0:02:33.6]} 9... Qe8
{[%clk 0:01:36.2]} 10. Bd3 {[%clk 0:02:28.3]} 10... Qf7 {[%clk 0:01:34.5]} 11.
Nd5 {[%clk 0:02:21.6]} 11... d6 {[%clk 0:01:07.6]} 12. Qg6+ {[%clk 0:02:04.3]}
12... Qxg6 {[%clk 0:01:05.6]} 13. hxg6 {[%clk 0:02:05.2]} 13... Nd7 {[%clk
0:00:48.6]} 14. Nxc7 {[%clk 0:01:57.8]} 14... Rb8 {[%clk 0:00:47.7]} 15. Rxh6
{[%clk 0:01:54.5]} 15... Bg7 {[%clk 0:00:40.7]} 16. Bc4+ {[%clk 0:01:53.3]} 1-0

[Event "Late-Titled-Tuesday-Blitz-May-28-2024"]
[Site "Chess.com"]
[Date "2024.05.28"]
[Round "8"]
[White "maracayo"]
[Black "N_I_Chess"]
[Result "1-0"]
[WhiteElo "2415"]
[BlackElo "2253"]
[TimeControl "180+1"]
[EndTime "15:25:42 PDT"]
[Termination "maracayo won by resignation"]

1. e4 {[%clk 0:03:00.9]} 1... Nf6 {[%clk 0:03:00]} 2. d3 {[%clk 0:03:00]} 2...
d5 {[%clk 0:02:57.5]} 3. Nd2 {[%clk 0:02:59.9]} 3... e5 {[%clk 0:02:54.3]} 4.
Ngf3 {[%clk 0:02:59.5]} 4... Nc6 {[%clk 0:02:51.6]} 5. Be2 {[%clk 0:02:59.5]}
5... Be7 {[%clk 0:02:42]} 6. O-O {[%clk 0:02:59.1]} 6... O-O {[%clk 0:02:39.5]}
7. h3 {[%clk 0:02:58.3]} 7... h6 {[%clk 0:02:31.8]} 8. c3 {[%clk 0:02:57.9]}
8... Be6 {[%clk 0:02:25.4]} 9. b4 {[%clk 0:02:56.7]} 9... a6 {[%clk 0:02:21.2]}
10. a3 {[%clk 0:02:54.3]} 10... Qd7 {[%clk 0:01:59.5]} 11. Re1 {[%clk
0:02:53.2]} 11... Rad8 {[%clk 0:01:58.7]} 12. Qc2 {[%clk 0:02:52.2]} 12... Rfe8
{[%clk 0:01:50.8]} 13. Bb2 {[%clk 0:02:51.5]} 13... Bf8 {[%clk 0:01:51]} 14. Bf1
{[%clk 0:02:50.6]} 14... dxe4 {[%clk 0:01:15.6]} 15. dxe4 {[%clk 0:02:48.8]}
15... Nh5 {[%clk 0:01:12.2]} 16. Nc4 {[%clk 0:02:45.3]} 16... Bxc4 {[%clk
0:01:02.7]} 17. Bxc4 {[%clk 0:02:44.2]} 17... b5 {[%clk 0:01:03.2]} 18. Bf1
{[%clk 0:02:34.1]} 18... Nf4 {[%clk 0:00:56.6]} 19. Rad1 {[%clk 0:02:22.5]}
19... Qe6 {[%clk 0:00:56.7]} 20. c4 {[%clk 0:02:22.1]} 20... Nd4 {[%clk
0:00:31.4]} 21. Bxd4 {[%clk 0:02:15.5]} 21... exd4 {[%clk 0:00:31.1]} 22. Nxd4
{[%clk 0:02:11.2]} 22... bxc4 {[%clk 0:00:29]} 23. Nxe6 {[%clk 0:02:09.4]} 1-0

[Event "Late-Titled-Tuesday-Blitz-May-28-2024"]
[Site "Chess.com"]
[Date "2024.05.28"]
[Round "8"]
[White "BogdanDeac"]
[Black "Shuvalov"]
[Result "1-0"]
[WhiteElo "3057"]
[BlackElo "2561"]
[TimeControl "180+1"]
[EndTime "15:25:43 PDT"]
[Termination "BogdanDeac won by resignation"]

1. a4 {[%clk 0:03:00.9]} 1... Nf6 {[%clk 0:02:53.3]} 2. h4 {[%clk 0:03:00.4]}
2... e5 {[%clk 0:02:50.4]} 3. a5 {[%clk 0:02:59.8]} 3... d5 {[%clk 0:02:49.8]}
4. e3 {[%clk 0:03:00]} 4... Bd6 {[%clk 0:02:48.1]} 5. h5 {[%clk 0:02:58.5]} 5...
h6 {[%clk 0:02:47.9]} 6. d4 {[%clk 0:02:57.6]} 6... e4 {[%clk 0:02:45.5]} 7. c4
{[%clk 0:02:57.1]} 7... c6 {[%clk 0:02:42.2]} 8. Nc3 {[%clk 0:02:55.2]} 8... Bb4
{[%clk 0:02:33.2]} 9. Qa4 {[%clk 0:02:53.9]} 9... Na6 {[%clk 0:02:30]} 10. cxd5
{[%clk 0:02:43.6]} 10... Nxd5 {[%clk 0:02:30]} 11. Bxa6 {[%clk 0:02:43.2]} 11...
bxa6 {[%clk 0:02:26.1]} 12. Qxc6+ {[%clk 0:02:42.9]} 12... Kf8 {[%clk
0:02:22.2]} 13. Qxa8 {[%clk 0:02:36.5]} 13... Nxc3 {[%clk 0:02:21.8]} 14. Bd2
{[%clk 0:02:31.8]} 14... Nd5 {[%clk 0:02:21.3]} 15. Qxa7 {[%clk 0:02:31.6]}
15... Kg8 {[%clk 0:02:10.8]} 16. Ne2 {[%clk 0:02:28.9]} 16... Bxd2+ {[%clk
0:02:08.9]} 17. Kxd2 {[%clk 0:02:28.3]} 17... Be6 {[%clk 0:02:05.9]} 18. Qxa6
{[%clk 0:02:25.6]} 18... Qb8 {[%clk 0:02:01.6]} 19. Rhb1 {[%clk 0:02:21.3]}
19... Kh7 {[%clk 0:01:54.9]} 20. Nc3 {[%clk 0:02:20.4]} 20... Qh2 {[%clk
0:01:43.5]} 21. Qf1 {[%clk 0:02:12.7]} 21... Nb4 {[%clk 0:01:35.9]} 22. a6
{[%clk 0:02:10.1]} 22... Ra8 {[%clk 0:01:28.3]} 23. a7 {[%clk 0:02:09.1]} 23...
Qc7 {[%clk 0:01:27.4]} 24. Qb5 {[%clk 0:02:08.3]} 24... Nd3 {[%clk 0:01:21]} 25.
Nxe4 {[%clk 0:02:07.9]} 25... Bc4 {[%clk 0:01:11.8]} 26. Qf5+ {[%clk 0:02:01.7]}
26... Kg8 {[%clk 0:01:11.2]} 27. b3 {[%clk 0:02:01.8]} 27... Rxa7 {[%clk
0:01:03.4]} 28. Rxa7 {[%clk 0:01:53.9]} 28... Qxa7 {[%clk 0:01:02.9]} 29. Qc8+
{[%clk 0:01:54.5]} 29... Kh7 {[%clk 0:01:01.8]} 30. Qxc4 {[%clk 0:01:55.2]}
30... f5 {[%clk 0:00:59.3]} 31. Qxd3 {[%clk 0:01:52.4]} 31... fxe4 {[%clk
0:00:58.8]} 32. Qxe4+ {[%clk 0:01:52.9]} 1-0

[Event "Late-Titled-Tuesday-Blitz-May-28-2024"]
[Site "Chess.com"]
[Date "2024.05.28"]
[Round "8"]
[White "Quaide7"]
[Black "GoValya"]
[Result "0-1"]
[WhiteElo "2147"]
[BlackElo "2221"]
[TimeControl "180+1"]
[EndTime "15:25:47 PDT"]
[Termination "GoValya won on time"]

1. e4 {[%clk 0:02:56.6]} 1... e6 {[%clk 0:02:59.8]} 2. d4 {[%clk 0:02:52.2]}
2... d5 {[%clk 0:03:00]} 3. e5 {[%clk 0:02:52.7]} 3... c5 {[%clk 0:02:59.8]} 4.
c3 {[%clk 0:02:53.1]} 4... Nc6 {[%clk 0:03:00.1]} 5. Nf3 {[%clk 0:02:53.4]} 5...
Bd7 {[%clk 0:03:00.4]} 6. Bd3 {[%clk 0:02:52.2]} 6... cxd4 {[%clk 0:02:59.9]} 7.
cxd4 {[%clk 0:02:52]} 7... Qb6 {[%clk 0:03:00.1]} 8. Bc2 {[%clk 0:02:51.6]} 8...
Nb4 {[%clk 0:02:53.3]} 9. Nc3 {[%clk 0:02:46.9]} 9... Rc8 {[%clk 0:02:49.3]} 10.
O-O {[%clk 0:02:45.4]} 10... h6 {[%clk 0:02:20.8]} 11. Bb3 {[%clk 0:02:25.3]}
11... Ne7 {[%clk 0:02:13.8]} 12. Be3 {[%clk 0:02:19.8]} 12... Nf5 {[%clk
0:02:12.7]} 13. Qd2 {[%clk 0:02:18.7]} 13... Be7 {[%clk 0:02:09.1]} 14. Rac1
{[%clk 0:02:01.8]} 14... O-O {[%clk 0:02:06.4]} 0-1

[Event "Late-Titled-Tuesday-Blitz-May-28-2024"]
[Site "Chess.com"]
[Date "2024.05.28"]
[Round "8"]
[White "toninhojit"]
[Black "Maect19"]
[Result "0-1"]
[WhiteElo "2531"]
[BlackElo "2302"]
[TimeControl "180+1"]
[EndTime "15:25:59 PDT"]
[Termination "Maect19 won by resignation"]

1. d4 {[%clk 0:03:00.9]} 1... d5 {[%clk 0:02:59.4]} 2. c4 {[%clk 0:03:01.1]}
2... c6 {[%clk 0:02:59.7]} 3. Nf3 {[%clk 0:03:01.6]} 3... Nf6 {[%clk 0:02:59.8]}
4. e3 {[%clk 0:03:00.9]} 4... e6 {[%clk 0:02:57.6]} 5. Be2 {[%clk 0:02:57.7]}
5... Nbd7 {[%clk 0:02:57.3]} 6. O-O {[%clk 0:02:57.1]} 6... Bd6 {[%clk
0:02:57.1]} 7. b3 {[%clk 0:02:57.4]} 7... e5 {[%clk 0:02:48.7]} 8. dxe5 {[%clk
0:02:55.8]} 8... Nxe5 {[%clk 0:02:48.4]} 9. Bb2 {[%clk 0:02:55.1]} 9... Nxf3+
{[%clk 0:02:43.7]} 10. Bxf3 {[%clk 0:02:56]} 10... dxc4 {[%clk 0:02:43.6]} 11.
bxc4 {[%clk 0:02:52.9]} 11... O-O {[%clk 0:02:42.6]} 12. Qc2 {[%clk 0:02:51.1]}
12... Qe7 {[%clk 0:02:40.5]} 13. Rd1 {[%clk 0:02:47.6]} 13... Be5 {[%clk
0:02:40.5]} 14. Ba3 {[%clk 0:02:40.9]} 14... c5 {[%clk 0:02:37.3]} 15. Bb2
{[%clk 0:02:41.5]} 15... Rb8 {[%clk 0:02:26.3]} 16. Nc3 {[%clk 0:02:38.1]} 16...
Be6 {[%clk 0:02:21.5]} 17. Nd5 {[%clk 0:02:38.2]} 17... Bxd5 {[%clk 0:02:20]}
18. Bxd5 {[%clk 0:02:36.5]} 18... Bxb2 {[%clk 0:02:19]} 19. Qxb2 {[%clk
0:02:37.4]} 19... b6 {[%clk 0:02:16.9]} 20. Rd2 {[%clk 0:02:37.2]} 20... Rfe8
{[%clk 0:02:10.4]} 21. Rad1 {[%clk 0:02:36.9]} 21... Nxd5 {[%clk 0:02:05.9]} 22.
Rxd5 {[%clk 0:02:36.2]} 22... Rbd8 {[%clk 0:02:02.6]} 23. Qd2 {[%clk 0:02:35.8]}
23... Rxd5 {[%clk 0:02:01.6]} 24. Qxd5 {[%clk 0:02:36.7]} 24... Qe6 {[%clk
0:01:58.2]} 25. Kf1 {[%clk 0:02:27.7]} 25... Qxd5 {[%clk 0:01:55.8]} 26. Rxd5
{[%clk 0:02:28.6]} 26... Kf8 {[%clk 0:01:55.6]} 27. Ke2 {[%clk 0:02:17.1]} 27...
Ke7 {[%clk 0:01:55.4]} 28. Kd3 {[%clk 0:02:07.9]} 28... Rd8 {[%clk 0:01:54.9]}
29. e4 {[%clk 0:02:08.5]} 29... Rd6 {[%clk 0:01:53.8]} 30. a4 {[%clk 0:02:04.9]}
30... f6 {[%clk 0:01:53.4]} 31. f4 {[%clk 0:02:02]} 31... Ke6 {[%clk 0:01:52.7]}
32. f5+ {[%clk 0:01:50.9]} 32... Kd7 {[%clk 0:01:50.2]} 33. e5 {[%clk
0:01:42.5]} 33... Rxd5+ {[%clk 0:01:48]} 34. cxd5 {[%clk 0:01:42.7]} 34... fxe5
{[%clk 0:01:48.5]} 35. g4 {[%clk 0:01:37.2]} 35... Kd6 {[%clk 0:01:47.8]} 36.
Ke4 {[%clk 0:01:37.4]} 36... a6 {[%clk 0:01:47.4]} 37. g5 {[%clk 0:01:37.8]}
37... b5 {[%clk 0:01:47.6]} 38. f6 {[%clk 0:01:38.2]} 38... gxf6 {[%clk
0:01:46.5]} 39. gxf6 {[%clk 0:01:39.1]} 39... bxa4 {[%clk 0:01:45.8]} 40. f7
{[%clk 0:01:22.3]} 40... Ke7 {[%clk 0:01:45]} 41. Kxe5 {[%clk 0:01:22.8]} 41...
Kxf7 {[%clk 0:01:41.4]} 42. Kd6 {[%clk 0:01:20.2]} 42... a3 {[%clk 0:01:41.5]}
43. Kc7 {[%clk 0:01:20.8]} 43... a2 {[%clk 0:01:41.2]} 44. d6 {[%clk 0:01:21.7]}
44... a1=Q {[%clk 0:01:41.5]} 45. d7 {[%clk 0:01:22.6]} 45... Qd4 {[%clk
0:01:40.9]} 0-1

[Event "Late-Titled-Tuesday-Blitz-May-28-2024"]
[Site "Chess.com"]
[Date "2024.05.28"]
[Round "8"]
[White "Bykov_Egor"]
[Black "Felix-Rose"]
[Result "0-1"]
[WhiteElo "2603"]
[BlackElo "2307"]
[TimeControl "180+1"]
[EndTime "15:26:21 PDT"]
[Termination "Felix-Rose won by resignation"]

1. e4 {[%clk 0:02:59.1]} 1... e5 {[%clk 0:02:59.7]} 2. Nf3 {[%clk 0:02:57.7]}
2... Nc6 {[%clk 0:02:59.9]} 3. Bb5 {[%clk 0:02:57.6]} 3... a6 {[%clk 0:02:59.1]}
4. Bxc6 {[%clk 0:02:54.2]} 4... dxc6 {[%clk 0:02:58.8]} 5. d4 {[%clk 0:02:51.1]}
5... exd4 {[%clk 0:02:55.1]} 6. Qxd4 {[%clk 0:02:52]} 6... Qxd4 {[%clk
0:02:54.5]} 7. Nxd4 {[%clk 0:02:52.9]} 7... c5 {[%clk 0:02:55.1]} 8. Ne2 {[%clk
0:02:40.9]} 8... Bd7 {[%clk 0:02:52.7]} 9. Nbc3 {[%clk 0:02:39.7]} 9... O-O-O
{[%clk 0:02:50.2]} 10. Be3 {[%clk 0:02:35.9]} 10... b6 {[%clk 0:02:40.7]} 11. a4
{[%clk 0:02:35.2]} 11... a5 {[%clk 0:02:36.7]} 12. Nf4 {[%clk 0:02:31.5]} 12...
Ne7 {[%clk 0:02:35.5]} 13. b3 {[%clk 0:02:25.3]} 13... f5 {[%clk 0:02:34.7]} 14.
f3 {[%clk 0:02:05.1]} 14... fxe4 {[%clk 0:02:31.8]} 15. fxe4 {[%clk 0:02:05.3]}
15... Nc6 {[%clk 0:02:26.7]} 16. Nfd5 {[%clk 0:02:04.8]} 16... Bd6 {[%clk
0:02:22]} 17. Rd1 {[%clk 0:01:58.4]} 17... Kb7 {[%clk 0:02:17.7]} 18. Nb5 {[%clk
0:01:51.3]} 18... Be5 {[%clk 0:02:11.1]} 19. O-O {[%clk 0:01:50.3]} 19... Bg4
{[%clk 0:01:47.1]} 20. Rd2 {[%clk 0:01:29]} 20... Rhf8 {[%clk 0:01:42.6]} 21.
Rxf8 {[%clk 0:01:23.3]} 21... Rxf8 {[%clk 0:01:41.2]} 22. h3 {[%clk 0:01:23.9]}
22... Be6 {[%clk 0:01:33.7]} 23. Rf2 {[%clk 0:01:20.8]} 23... Rxf2 {[%clk
0:01:32.7]} 24. Kxf2 {[%clk 0:01:21.7]} 24... Nb4 {[%clk 0:01:31.4]} 25. Nxb4
{[%clk 0:01:18.9]} 25... axb4 {[%clk 0:01:28.3]} 26. a5 {[%clk 0:01:01.3]} 26...
c6 {[%clk 0:01:16.7]} 27. axb6 {[%clk 0:01:01.2]} 27... Kxb6 {[%clk 0:01:09.5]}
28. c3 {[%clk 0:01:00.6]} 28... cxb5 {[%clk 0:01:06.7]} 0-1

[Event "Late-Titled-Tuesday-Blitz-May-28-2024"]
[Site "Chess.com"]
[Date "2024.05.28"]
[Round "8"]
[White "KingCyber19"]
[Black "Abund"]
[Result "0-1"]
[WhiteElo "2630"]
[BlackElo "2829"]
[TimeControl "180+1"]
[EndTime "15:26:27 PDT"]
[Termination "Abund won by resignation"]

1. d4 {[%clk 0:03:00.9]} 1... d5 {[%clk 0:02:59.9]} 2. c4 {[%clk 0:03:00.1]}
2... e6 {[%clk 0:03:00.3]} 3. g3 {[%clk 0:02:59.8]} 3... dxc4 {[%clk 0:03:00]}
4. Bg2 {[%clk 0:02:58]} 4... c5 {[%clk 0:02:53]} 5. Nf3 {[%clk 0:02:45.7]} 5...
Nc6 {[%clk 0:02:51]} 6. O-O {[%clk 0:02:32.3]} 6... cxd4 {[%clk 0:02:49.7]} 7.
Qa4 {[%clk 0:02:32.4]} 7... Bd7 {[%clk 0:02:47.3]} 8. Qxc4 {[%clk 0:02:31.8]}
8... e5 {[%clk 0:02:44.4]} 9. e3 {[%clk 0:02:22.7]} 9... Be6 {[%clk 0:02:16.7]}
10. Qa4 {[%clk 0:02:21.3]} 10... Qd7 {[%clk 0:02:09.2]} 11. exd4 {[%clk
0:02:13.7]} 11... exd4 {[%clk 0:02:07.2]} 12. Rd1 {[%clk 0:02:11.3]} 12... Bc5
{[%clk 0:01:56.3]} 13. Be3 {[%clk 0:02:11]} 13... Rd8 {[%clk 0:01:42.4]} 14. Na3
{[%clk 0:01:45.8]} 14... Nf6 {[%clk 0:01:31.1]} 15. Nc2 {[%clk 0:01:39.9]} 15...
O-O {[%clk 0:01:08.8]} 16. Nfxd4 {[%clk 0:01:27.7]} 16... Nxd4 {[%clk
0:01:05.8]} 17. Qxd7 {[%clk 0:01:26.5]} 17... Rxd7 {[%clk 0:00:46.2]} 18. Bxd4
{[%clk 0:01:25]} 18... Rfd8 {[%clk 0:00:43.9]} 19. Bxc5 {[%clk 0:01:04.1]} 19...
Rxd1+ {[%clk 0:00:43.2]} 20. Rxd1 {[%clk 0:01:05]} 20... Rxd1+ {[%clk
0:00:43.5]} 21. Bf1 {[%clk 0:01:05.9]} 21... Rc1 {[%clk 0:00:44.2]} 22. Ne3
{[%clk 0:01:06.7]} 22... Rxc5 {[%clk 0:00:44.2]} 0-1

[Event "Late-Titled-Tuesday-Blitz-May-28-2024"]
[Site "Chess.com"]
[Date "2024.05.28"]
[Round "8"]
[White "boguszp"]
[Black "ChEsper99"]
[Result "0-1"]
[WhiteElo "2017"]
[BlackElo "2229"]
[TimeControl "180+1"]
[EndTime "15:26:27 PDT"]
[Termination "ChEsper99 won on time"]

1. d4 {[%clk 0:02:55.4]} 1... d5 {[%clk 0:02:49.5]} 2. Nf3 {[%clk 0:02:53.8]}
2... Nf6 {[%clk 0:02:45.2]} 3. Bg5 {[%clk 0:02:47.3]} 3... e6 {[%clk 0:02:41.6]}
4. c4 {[%clk 0:02:44.4]} 4... dxc4 {[%clk 0:02:36.7]} 5. Nc3 {[%clk 0:00:14.3]}
5... Bb4 {[%clk 0:01:44.7]} 6. e3 {[%clk 0:00:14.1]} 6... Bxc3+ {[%clk
0:01:44.9]} 7. bxc3 {[%clk 0:00:13.2]} 7... c5 {[%clk 0:01:44.6]} 8. Bxc4 {[%clk
0:00:13.5]} 8... cxd4 {[%clk 0:01:44.4]} 9. cxd4 {[%clk 0:00:12.4]} 9... Nbd7
{[%clk 0:01:41.3]} 10. O-O {[%clk 0:00:09.4]} 10... O-O {[%clk 0:01:39.5]} 11.
Qb3 {[%clk 0:00:07]} 11... Qb6 {[%clk 0:01:38.6]} 12. Rab1 {[%clk 0:00:05.7]}
12... Qxb3 {[%clk 0:01:38.6]} 13. Rxb3 {[%clk 0:00:02.4]} 13... b6 {[%clk
0:01:38.9]} 14. Rc1 {[%clk 0:00:01.2]} 14... Bb7 {[%clk 0:01:38.7]} 15. Be2
{[%clk 0:00:01.4]} 15... Rac8 {[%clk 0:01:38.2]} 16. Rbc3 {[%clk 0:00:02]} 16...
Rxc3 {[%clk 0:01:36.9]} 17. Rxc3 {[%clk 0:00:02.5]} 17... Rc8 {[%clk 0:01:37.6]}
18. Rxc8+ {[%clk 0:00:02.5]} 18... Bxc8 {[%clk 0:01:38.5]} 19. Nd2 {[%clk
0:00:02]} 19... h6 {[%clk 0:01:37.9]} 0-1

[Event "Late-Titled-Tuesday-Blitz-May-28-2024"]
[Site "Chess.com"]
[Date "2024.05.28"]
[Round "8"]
[White "howitzer14"]
[Black "Smiechu"]
[Result "1-0"]
[WhiteElo "3019"]
[BlackElo "2456"]
[TimeControl "180+1"]
[EndTime "15:26:33 PDT"]
[Termination "howitzer14 won by resignation"]

1. e4 {[%clk 0:02:59.4]} 1... c5 {[%clk 0:02:59.5]} 2. Nf3 {[%clk 0:02:57.9]}
2... g6 {[%clk 0:02:59.6]} 3. c4 {[%clk 0:02:48]} 3... Nc6 {[%clk 0:02:43.6]} 4.
d4 {[%clk 0:02:48.4]} 4... cxd4 {[%clk 0:02:43.7]} 5. Nxd4 {[%clk 0:02:49.3]}
5... Nf6 {[%clk 0:02:43.8]} 6. Nc3 {[%clk 0:02:47.9]} 6... Nxd4 {[%clk
0:02:43.9]} 7. Qxd4 {[%clk 0:02:47.8]} 7... d6 {[%clk 0:02:44.6]} 8. f3 {[%clk
0:02:45.2]} 8... Bg7 {[%clk 0:02:44.7]} 9. Be3 {[%clk 0:02:45.8]} 9... O-O
{[%clk 0:02:45.1]} 10. Qd2 {[%clk 0:02:45.9]} 10... a5 {[%clk 0:02:45.3]} 11.
Be2 {[%clk 0:02:37.9]} 11... a4 {[%clk 0:02:44.8]} 12. Rc1 {[%clk 0:02:37.9]}
12... Qa5 {[%clk 0:02:40.6]} 13. Nb5 {[%clk 0:02:34.3]} 13... Be6 {[%clk
0:02:13]} 14. Qxa5 {[%clk 0:02:08.4]} 14... Rxa5 {[%clk 0:02:13.1]} 15. Nc7
{[%clk 0:02:08]} 15... Nd7 {[%clk 0:02:05.6]} 16. Rc2 {[%clk 0:02:01.7]} 16...
Rc8 {[%clk 0:01:57.4]} 17. Nxe6 {[%clk 0:02:01.8]} 17... fxe6 {[%clk 0:01:57.2]}
18. Kd2 {[%clk 0:02:02.7]} 18... Ne5 {[%clk 0:01:43.4]} 19. Kc1 {[%clk
0:01:49.7]} 19... Nc6 {[%clk 0:01:35]} 20. Rd2 {[%clk 0:01:47.2]} 20... b5
{[%clk 0:01:13.2]} 21. Kb1 {[%clk 0:00:54.3]} 21... bxc4 {[%clk 0:01:09.4]} 22.
Bxc4 {[%clk 0:00:55.2]} 22... Nb4 {[%clk 0:00:49.9]} 23. Bxe6+ {[%clk 0:00:54]}
1-0